fUSD/lending_fUSD_20250606
["ID","MTS","AMOUNT","RATE_DAILY","PERIOD"]
[364702183,1749211847052,-481.79838109,0.00030164,7]
[364702185,1749211847064,-468.26953635,0.00030164,7]
[364702187,1749211847076,-480.0,0.00030164,7]
[364702190,1749211847088,-480.0,0.00030164,7]
[364702192,1749211847101,-480.0,0.00030164,7]
[364702194,1749211847116,-480.0,0.00030164,2]
[364702196,1749211847127,-486.80132487,0.00030164,7]
[364702198,1749211847139,-480.0,0.00030164,7]
[364702200,1749211847153,-480.0,0.00030164,7]
[364702202,1749211847165,-480.0,0.00030164,7]
[364702204,1749211847176,-480.0,0.00030164,7]
[364702206,1749211847188,-482.33315533,0.00030164,7]
[364702208,1749211847201,-483.26868124,0.00030164,7]
[364702211,1749211847215,-480.0,0.00030164,7]
[364702213,1749211847227,-481.98353852,0.00030164,7]
[364702215,1749211847241,-513.11890785,0.00030164,7]
[364702217,1749211847254,-811.92,0.00030164,7]
[364702219,1749211847266,-555.17860144,0.00030164,7]
[364702221,1749211847278,-492.42876876,0.00030164,7]
[364702223,1749211847290,-422.8077953,0.00030164,7]
[364702225,1749211847303,-482.2143295,0.00030164,7]
[364702228,1749211847317,-480.0,0.00030164,7]
[364702230,1749211847329,-480.0,0.00030164,7]
[364702232,1749211847341,-151.0,0.00030164,7]
[364702234,1749211847354,-151.0,0.00030164,7]
[364702236,1749211847367,-151.0,0.00030164,7]
[364702238,1749211847380,-157.615227,0.00030164,7]
[364702240,1749211847395,-480.0,0.00030164,7]
[364702242,1749211847408,-210.663649,0.00030164,7]
[364702244,1749211847422,-480.0,0.00030164,7]
[364702246,1749211847434,-210.663649,0.00030164,7]
[364702248,1749211847446,-480.0,0.00030164,7]
[364702251,1749211847459,-210.663649,0.00030164,7]
[364702253,1749211847472,-210.663649,0.00030164,7]
[364702255,1749211847484,-480.0,0.00030164,7]
[364702256,1749211847500,-480.0,0.00030164,7]
[364702259,1749211847512,-210.663649,0.00030164,7]
[364702261,1749211847524,-210.663649,0.00030164,7]
[364702263,1749211847535,-210.663649,0.00030164,7]
[364702265,1749211847547,-210.663649,0.00030164,7]
[364702267,1749211847559,-480.0,0.00030164,7]
[364702269,1749211847571,-522.17166458,0.00030164,7]
[364702271,1749211847583,-480.0,0.00030164,7]
[364702273,1749211847595,-480.0,0.00030164,7]
[364702275,1749211847607,-480.0,0.00030164,7]
[364702277,1749211847619,-480.0,0.00030164,7]
[364702279,1749211847630,-480.0,0.00030164,7]
[364702281,1749211847642,-151.0,0.00030164,7]
[364702283,1749211847655,-151.0,0.00030164,7]
[364702285,1749211847667,-151.0,0.00030164,7]
[364702287,1749211847679,-151.0,0.00030164,7]
[364702289,1749211847691,-151.0,0.00030164,7]
[364702291,1749211847704,-151.0,0.00030164,7]
[364702293,1749211847713,-506.06873661,0.00030164,7]
[364702295,1749211847723,-151.0,0.00030164,7]
[364702297,1749211847732,-480.0,0.00030164,7]
[364702299,1749211847744,-480.0,0.00030164,7]
[364702301,1749211847754,-480.0,0.00030164,7]
[364702303,1749211847764,-151.0,0.00030164,7]
[364702305,1749211847774,-151.0,0.00030164,7]
[364702307,1749211847783,-151.0,0.00030164,7]
[364702309,1749211847792,-151.0,0.00030164,7]
[364702311,1749211847802,-480.0,0.00030164,7]
[364702335,1749211848212,-300.0,0.00030164,7]
[364702338,1749211848238,-763.323402,0.00030164,7]
[364702341,1749211848251,-763.323402,0.00030164,7]
[364702343,1749211848261,-763.323402,0.00030164,7]
[364702345,1749211848271,-763.323402,0.00030164,7]
[364702347,1749211848280,-151.0,0.00030164,7]
[364702349,1749211848289,-513.69,0.00030164,7]
[364702350,1749211848298,-151.0,0.00030164,7]
[364702352,1749211848308,-151.0,0.00030164,7]
[364702354,1749211848317,-480.0,0.00030164,7]
[364702357,1749211848328,-487.53173442,0.00030164,7]
[364702359,1749211848338,-480.0,0.00030164,7]
[364702361,1749211848348,-763.323402,0.00030164,7]
[364702363,1749211848358,-763.323402,0.00030164,7]
[364702365,1749211848368,-763.323402,0.00030164,7]
[364702367,1749211848378,-339.10455416,0.00030164,7]
[364702369,1749211848387,-763.323402,0.00030164,7]
[364702371,1749211848398,-480.0,0.00030164,7]
[364702373,1749211848408,-480.0,0.00030164,7]
[364702374,1749211848418,-154.75414649,0.00030164,7]
[364702377,1749211848428,-480.0,0.00030164,7]
[364702378,1749211848438,-289.77101876,0.00030164,7]
[364702380,1749211848447,-480.0,0.00030164,7]
[364702382,1749211848457,-151.0,0.00030164,7]
[364702384,1749211848466,-151.0,0.00030164,7]
[364702386,1749211848476,-151.0,0.00030164,7]
[364702388,1749211848488,-151.0,0.00030164,7]
[364702391,1749211848498,-179.265822,0.00030164,7]
[364702392,1749211848508,-179.265822,0.00030164,7]
[364702395,1749211848517,-179.265822,0.00030164,7]
[364702396,1749211848528,-179.265822,0.00030164,7]
[364702398,1749211848538,-449.30207386,0.00030164,7]
[364702400,1749211848548,-151.0,0.00030164,7]
[364702403,1749211848558,-480.0,0.00030164,7]
[364702405,1749211848567,-151.0,0.00030164,7]
[364702406,1749211848577,-151.0,0.00030164,7]
[364702408,1749211848587,-179.265822,0.00030164,7]
[364702411,1749211848596,-151.0,0.00030164,7]
[364702413,1749211848606,-179.265822,0.00030164,7]
[364702415,1749211848616,-151.0,0.00030164,7]
[364702417,1749211848625,-151.0,0.00030164,7]
[364702418,1749211848635,-179.265822,0.00030164,7]
[364702420,1749211848644,-152.257674,0.00030164,7]
[364702423,1749211848653,-480.0,0.00030164,7]
[364702425,1749211848663,-179.265822,0.00030164,7]
[364702427,1749211848673,-151.0,0.00030164,7]
[364702428,1749211848682,-151.0,0.00030164,7]
[364702431,1749211848692,-151.0,0.00030164,7]
[364702432,1749211848702,-480.0,0.00030164,7]
[364702434,1749211848711,-480.0,0.00030164,7]
[364702436,1749211848720,-480.0,0.00030164,7]
[364702438,1749211848729,-487.91754776,0.00030164,7]
[364702440,1749211848740,-151.0,0.00030164,7]
[364702442,1749211848749,-151.0,0.00030164,7]
[364702444,1749211848759,-151.0,0.00030164,7]
[364702446,1749211848768,-171.201956,0.00030164,7]
[364702448,1749211848778,-500.0,0.00030164,7]
[364702450,1749211848788,-483.35347419,0.00030164,7]
[364702452,1749211848797,-480.0,0.00030164,7]
[364702454,1749211848806,-480.64535471,0.00030164,7]
[364702457,1749211848816,-1538.15,0.00030164,7]
[364702459,1749211848825,-480.0,0.00030164,7]
[364702461,1749211848836,-480.0,0.00030164,7]
[364702462,1749211848845,-474.80200705,0.00030164,7]
[364702464,1749211848854,-480.0,0.00030164,7]
[364702467,1749211848864,-480.0,0.00030164,7]
[364702469,1749211848874,-480.0,0.00030164,7]
[364702471,1749211848883,-482.95726208,0.00030164,7]
[364702472,1749211848893,-480.0,0.00030164,7]
[364702474,1749211848902,-483.4190331,0.00030164,7]
[364702476,1749211848912,-480.0,0.00030164,7]
[364702478,1749211848922,-480.0,0.00030164,7]
[364702480,1749211848931,-404.32452553,0.00030164,7]
[364702482,1749211848940,-480.0,0.00030164,7]
[364702484,1749211848949,-480.0,0.00030164,7]
[364702486,1749211848959,-480.0,0.00030164,7]
[364702488,1749211848969,-480.0,0.00030164,7]
[364702490,1749211848979,-480.0,0.00030164,7]
[364702492,1749211848990,-493.16,0.00030164,7]
[364702494,1749211848999,-480.0,0.00030164,7]
[364702496,1749211849009,-151.0,0.00030164,7]
[364702498,1749211849018,-151.0,0.00030164,7]
[364702500,1749211849027,-151.0,0.00030164,7]
[364702502,1749211849037,-151.0,0.00030164,7]
[364702504,1749211849046,-480.0,0.00030164,7]
[364702506,1749211849056,-480.0,0.00030164,7]
[364702508,1749211849065,-480.0,0.00030164,7]
[364702510,1749211849074,-480.0,0.00030164,7]
[364702512,1749211849084,-480.0,0.00030164,7]
[364702514,1749211849094,-515.0579445,0.00030164,7]
[364702516,1749211849107,-480.0,0.00030164,7]
[364702518,1749211849117,-480.0,0.00030164,7]
[364702520,1749211849127,-480.0,0.00030164,7]
[364702522,1749211849137,-480.0,0.00030164,7]
[364702524,1749211849148,-151.0,0.00030164,7]
[364702527,1749211849158,-151.0,0.00030164,7]
[364702529,1749211849174,-500.0,0.00030164,7]
[364702531,1749211849184,-151.0,0.00030164,7]
[364702533,1749211849194,-480.0,0.00030164,7]
[364702535,1749211849203,-301.163539,0.00030164,7]
[364702537,1749211849213,-483.32356621,0.00030164,7]
[364702539,1749211849222,-894.02,0.00030164,7]
[364702541,1749211849232,-480.0,0.00030164,7]
[364702543,1749211849244,-460.0,0.00030164,7]
[364702545,1749211849254,-480.0,0.00030164,7]
[364702547,1749211849264,-480.0,0.00030164,7]
[364702549,1749211849274,-480.0,0.00030164,7]
[364702551,1749211849284,-480.0,0.00030164,7]
[364702553,1749211849294,-506.97641665,0.00030164,7]
[364702555,1749211849305,-480.0,0.00030164,7]
[364702557,1749211849314,-480.0,0.00030164,7]
[364702559,1749211849324,-480.0,0.00030164,7]
[364702561,1749211849333,-480.0,0.00030164,7]
[364702563,1749211849343,-480.0,0.00030164,7]
[364702565,1749211849353,-335.7994555,0.00030164,7]
[364702567,1749211849362,-480.0,0.00030164,7]
[364702569,1749211849372,-480.0,0.00030164,7]
[364702571,1749211849382,-480.0,0.00030164,7]
[364702573,1749211849393,-669.26,0.00030164,7]
[364702575,1749211849403,-480.0,0.00030164,7]
[364702577,1749211849412,-480.0,0.00030164,7]
[364702579,1749211849423,-485.31481093,0.00030164,7]
[364702581,1749211849433,-485.74498494,0.00030164,7]
[364702583,1749211849444,-518.51,0.00030164,7]
[364702585,1749211849454,-151.0,0.00030164,7]
[364702587,1749211849463,-480.0,0.00030164,7]
[364702589,1749211849473,-151.0,0.00030164,7]
[364702591,1749211849483,-487.91355193,0.00030164,7]
[364702593,1749211849494,-151.0,0.00030164,7]
[364702595,1749211849504,-480.0,0.00030164,7]
[364702597,1749211849514,-151.0,0.00030164,7]
[364702599,1749211849524,-484.24023923,0.00030164,7]
[364702601,1749211849533,-480.0,0.00030164,7]
[364702603,1749211849543,-368.48803439,0.00030164,7]
[364702605,1749211849553,-1239.07,0.00030164,7]
[364702607,1749211849562,-349.30714137,0.00030164,7]
[364702700,1749211850426,-883.0,0.0002935,2]
[364702702,1749211850436,-500.0,0.00030136,7]
[364702704,1749211850446,-500.0,0.00030136,7]
[364702706,1749211850455,-500.0,0.00030136,7]
[364702708,1749211850466,-392.94000765,0.00030136,7]
[364702714,1749211850508,-107.05999235,0.00030136,7]
[364702716,1749211850518,-500.0,0.00030136,7]
[364702718,1749211850527,-500.0,0.00030136,7]
[364702720,1749211850537,-500.0,0.00030136,7]
[364702722,1749211850546,-500.0,0.00030136,7]
[364702724,1749211850556,-500.0,0.00030136,7]
[364702726,1749211850565,-130.69285863,0.00030164,7]
[364702728,1749211850575,-1363.97,0.00030164,7]
[364702730,1749211850584,-192.936671,0.00030164,7]
[364702732,1749211850594,-480.0,0.00030164,7]
[364702733,1749211850603,-1309.46,0.00030164,7]
[364702735,1749211850612,-480.0,0.00030164,7]
[364702737,1749211850621,-480.0,0.00030164,7]
[364702739,1749211850631,-250.0,0.00030164,7]
[364702741,1749211850641,-492.952179,0.00030164,7]
[364702743,1749211850650,-480.0,0.00030164,7]
[364702745,1749211850659,-480.0,0.00030164,7]
[364702747,1749211850668,-480.0,0.00030164,7]
[364702749,1749211850678,-480.0,0.00030164,7]
[364702751,1749211850688,-480.0,0.00030164,7]
[364702753,1749211850698,-491.67730773,0.00030164,7]
[364702755,1749211850707,-505.99725992,0.00030164,7]
[364702758,1749211850716,-480.0,0.00030164,7]
[364702759,1749211850726,-480.0,0.00030164,7]
[364702761,1749211850735,-480.0,0.00030164,7]
[364702763,1749211850745,-480.0,0.00030164,7]
[364702766,1749211850756,-480.0,0.00030164,7]
[364702768,1749211850766,-480.0,0.00030164,7]
[364702769,1749211850776,-535.31,0.00030164,7]
[364702771,1749211850785,-480.0,0.00030164,7]
[364702773,1749211850794,-151.0,0.00030164,7]
[364702775,1749211850803,-151.0,0.00030164,7]
[364702777,1749211850812,-151.0,0.00030164,7]
[364702780,1749211850822,-480.0,0.00030164,7]
[364702781,1749211850831,-151.0,0.00030164,7]
[364702784,1749211850841,-480.0,0.00030164,7]
[364702785,1749211850851,-768.8,0.00030164,7]
[364702788,1749211850861,-481.55906579,0.00030164,7]
[364702789,1749211850870,-420.0,0.00030164,7]
[364702791,1749211850880,-719.51,0.00030164,7]
[364702793,1749211850890,-151.0,0.00030164,7]
[364702796,1749211850900,-460.0,0.00030164,7]
[364702798,1749211850910,-497.86,0.00030164,7]
[364702800,1749211850920,-480.0,0.00030164,7]
[364702802,1749211850931,-480.0,0.00030164,7]
[364702804,1749211850940,-151.0,0.00030164,7]
[364702806,1749211850950,-151.0,0.00030164,7]
[364702807,1749211850959,-151.0,0.00030164,7]
[364702809,1749211850970,-483.624507,0.00030164,7]
[364702812,1749211850980,-480.0,0.00030164,7]
[364702813,1749211850989,-480.0,0.00030164,7]
[364702816,1749211850999,-507.47543912,0.00030164,7]
[364702818,1749211851009,-491.50050477,0.00030164,7]
[364702819,1749211851018,-480.0,0.00030164,7]
[364702822,1749211851027,-805.19,0.00030164,7]
[364702824,1749211851037,-480.0,0.00030164,7]
[364702826,1749211851047,-482.6790354,0.00030164,7]
[364702828,1749211851057,-480.0,0.00030164,7]
[364702830,1749211851066,-480.0,0.00030164,7]
[364702831,1749211851076,-480.0,0.00030164,7]
[364702834,1749211851087,-480.0,0.00030164,7]
[364702835,1749211851096,-480.0,0.00030164,7]
[364702838,1749211851111,-480.0,0.00030164,7]
[364702840,1749211851121,-480.0,0.00030164,7]
[364702842,1749211851131,-480.0,0.00030164,7]
[364702843,1749211851142,-492.22967703,0.00030164,7]
[364702846,1749211851151,-480.0,0.00030164,7]
[364702847,1749211851161,-480.0,0.00030164,7]
[364702849,1749211851170,-598.69,0.00030164,7]
[364702851,1749211851181,-510.52,0.00030164,7]
[364702853,1749211851192,-500.0,0.00030164,7]
[364702855,1749211851202,-92.57049059,0.00030164,7]
[364702878,1749211851550,-254.66158197,0.00030164,7]
[364702880,1749211851561,-132.76792744,0.00030164,7]
[364702883,1749211851571,-136.72844992,0.00030164,7]
[364702886,1749211851591,-363.27155008,0.00030164,7]
[364702888,1749211851601,-500.0,0.00030164,7]
[364702890,1749211851610,-480.0,0.00030164,7]
[364702891,1749211851620,-500.0,0.00030164,7]
[364702894,1749211851630,-500.0,0.00030164,7]
[364702895,1749211851640,-500.0,0.00030164,7]
[364702898,1749211851650,-466.6031885,0.00030164,7]
[364702899,1749211851659,-480.0,0.00030164,7]
[364702901,1749211851668,-484.38374052,0.00030164,7]
[364702903,1749211851678,-480.0,0.00030164,7]
[364702905,1749211851687,-487.77524339,0.00030164,7]
[364702907,1749211851697,-151.0,0.00030164,7]
[364702909,1749211851706,-151.0,0.00030164,7]
[364702911,1749211851715,-151.0,0.00030164,7]
[364702913,1749211851725,-151.0,0.00030164,7]
[364702916,1749211851739,-480.0,0.00030164,7]
[364702918,1749211851749,-151.0,0.00030164,7]
[364702920,1749211851759,-480.0,0.00030164,7]
[364702922,1749211851769,-151.0,0.00030164,7]
[364702924,1749211851779,-421.56590944,0.00030164,7]
[364702926,1749211851789,-151.0,0.00030164,7]
[364702928,1749211851799,-151.0,0.00030164,7]
[364702930,1749211851808,-504.41940431,0.00030164,7]
[364702932,1749211851818,-480.0,0.00030164,7]
[364702934,1749211851828,-487.73057646,0.00030164,7]
[364702936,1749211851839,-784.29,0.00030164,7]
[364702938,1749211851848,-480.0,0.00030164,7]
[364702940,1749211851858,-151.0,0.00030164,7]
[364702942,1749211851868,-480.0,0.00030164,7]
[364702944,1749211851877,-151.0,0.00030164,7]
[364702946,1749211851887,-151.0,0.00030164,7]
[364702948,1749211851897,-151.0,0.00030164,7]
[364702950,1749211851907,-480.0,0.00030164,7]
[364702952,1749211851917,-155.636501,0.00030164,7]
[364702954,1749211851927,-480.0,0.00030164,7]
[364702956,1749211851936,-483.38149312,0.00030164,7]
[364702957,1749211851945,-151.0,0.00030164,7]
[364702958,1749211851954,-480.0,0.00030164,7]
[364702959,1749211851963,-480.0,0.00030164,7]
[364702960,1749211851973,-480.0,0.00030164,7]
[364702961,1749211851983,-480.53432489,0.00030164,7]
[364702962,1749211851994,-480.0,0.00030164,7]
[364702963,1749211852004,-151.0,0.00030164,7]
[364702964,1749211852014,-154.467426,0.00030164,7]
[364702965,1749211852024,-480.0,0.00030164,7]
[364702966,1749211852034,-154.467426,0.00030164,7]
[364702967,1749211852044,-481.26475001,0.00030164,7]
[364702968,1749211852054,-154.467426,0.00030164,7]
[364702969,1749211852065,-480.0,0.00030164,7]
[364702971,1749211852074,-154.467426,0.00030164,7]
[364702973,1749211852085,-794.53,0.00030164,7]
[364702975,1749211852095,-480.0,0.00030164,7]
[364702976,1749211852108,-492.31792865,0.00030164,7]
[364702978,1749211852119,-480.0,0.00030164,7]
[364702979,1749211852129,-154.467426,0.00030164,7]
[364702980,1749211852139,-154.467426,0.00030164,7]
[364702981,1749211852150,-545.98,0.00030164,7]
[364702982,1749211852159,-701.3,0.00030164,7]
[364702983,1749211852169,-154.467426,0.00030164,7]
[364702984,1749211852179,-154.467426,0.00030164,7]
[364702985,1749211852193,-480.0,0.00030164,7]
[364702986,1749211852203,-480.0,0.00030164,7]
[364702988,1749211852213,-488.39739566,0.00030164,7]
[364702989,1749211852222,-480.0,0.00030164,7]
[364702990,1749211852232,-480.0,0.00030164,7]
[364702991,1749211852241,-480.0,0.00030164,7]
[364702992,1749211852250,-496.7189745,0.00030164,7]
[364702993,1749211852260,-424.05378161,0.00030164,7]
[364702994,1749211852271,-151.0,0.00030164,7]
[364702995,1749211852281,-480.0,0.00030164,7]
[364702996,1749211852290,-151.0,0.00030164,7]
[364702997,1749211852300,-480.0,0.00030164,7]
[364702998,1749211852310,-151.0,0.00030164,7]
[364702999,1749211852320,-480.0,0.00030164,7]
[364703000,1749211852330,-708.53,0.00030164,7]
[364703001,1749211852339,-151.0,0.00030164,7]
[364703002,1749211852349,-482.75906997,0.00030164,7]
[364703003,1749211852359,-480.0,0.00030164,7]
[364703004,1749211852369,-627.85645931,0.00030164,7]
[364703005,1749211852380,-423.27622111,0.00030164,7]
[364703006,1749211852389,-480.0,0.00030164,7]
[364703007,1749211852401,-392.91678659,0.00030164,7]
[364703008,1749211852411,-480.0,0.00030164,7]
[364703009,1749211852421,-151.0,0.00030164,7]
[364703010,1749211852431,-483.25585743,0.00030164,7]
[364703011,1749211852441,-151.0,0.00030164,7]
[364703012,1749211852451,-480.0,0.00030164,7]
[364703013,1749211852460,-151.0,0.00030164,7]
[364703014,1749211852470,-1051.14,0.00030164,7]
[364703016,1749211852480,-151.0,0.00030164,7]
[364703017,1749211852490,-480.0,0.00030164,7]
[364703019,1749211852500,-480.0,0.00030164,7]
[364703020,1749211852511,-480.0,0.00030164,7]
[364703022,1749211852521,-480.0,0.00030164,7]
[364703023,1749211852531,-480.0,0.00030164,7]
[364703024,1749211852541,-432.46830183,0.00030164,7]
[364703025,1749211852551,-485.69882971,0.00030164,7]
[364703026,1749211852561,-480.0,0.00030164,7]
[364703027,1749211852571,-466.11797011,0.00030164,7]
[364703028,1749211852581,-480.0,0.00030164,7]
[364703029,1749211852591,-486.41058017,0.00030164,7]
[364703030,1749211852600,-1112.7,0.00030164,7]
[364703031,1749211852610,-480.0,0.00030164,7]
[364703032,1749211852620,-480.0,0.00030164,7]
[364703033,1749211852630,-480.0,0.00030164,7]
[364703034,1749211852639,-488.07361668,0.00030164,7]
[364703035,1749211852649,-485.14,0.00030164,7]
[364703036,1749211852659,-480.0,0.00030164,7]
[364703037,1749211852669,-480.0,0.00030164,7]
[364703038,1749211852678,-480.0,0.00030164,7]
[364703039,1749211852688,-360.0,0.00030164,7]
[364703040,1749211852698,-480.0,0.00030164,7]
[364703041,1749211852707,-487.06865553,0.00030164,7]
[364703042,1749211852717,-443.68248787,0.00030164,7]
[364703043,1749211852727,-427.05153983,0.00030164,7]
[364703044,1749211852736,-465.65734134,0.00030164,7]
[364703045,1749211852746,-480.0,0.00030164,7]
[364703046,1749211852756,-484.88436648,0.00030164,7]
[364703047,1749211852765,-751.86,0.00030164,7]
[364703048,1749211852775,-438.44740247,0.00030164,7]
[364703049,1749211852785,-532.75,0.00030164,7]
[364703050,1749211852794,-497.08054199,0.00030164,7]
[364703051,1749211852804,-895.35,0.00030164,7]
[364703052,1749211852813,-174.35824643,0.00030164,7]
[364703053,1749211852823,-488.22,0.00030164,7]
[364703054,1749211852832,-480.0,0.00030164,7]
[364703055,1749211852841,-480.0,0.00030164,7]
[364703056,1749211852851,-480.0,0.00030164,7]
[364703057,1749211852860,-480.0,0.00030164,7]
[364703058,1749211852870,-480.0,0.00030164,7]
[364703059,1749211852880,-500.0,0.00030164,7]
[364703060,1749211852889,-500.0,0.00030164,7]
[364703061,1749211852898,-328.48174264,0.00030164,7]
[364703062,1749211852908,-504.50789842,0.00030164,7]
[364703063,1749211852918,-169.76672196,0.00030164,7]
[364703064,1749211852928,-480.0,0.00030164,7]
[364703065,1749211852938,-480.0,0.00030164,7]
[364703066,1749211852948,-480.0,0.00030164,7]
[364703067,1749211852957,-484.81077877,0.00030164,7]
[364703068,1749211852967,-480.0,0.00030164,7]
[364703069,1749211852977,-480.0,0.00030164,7]
[364703070,1749211852987,-480.0,0.00030164,7]
[364703071,1749211852997,-550.96438493,0.00030164,7]
[364703072,1749211853007,-494.53481212,0.00030164,7]
[364703073,1749211853017,-480.0,0.00030164,7]
[364703074,1749211853026,-480.0,0.00030164,7]
[364703075,1749211853035,-480.0,0.00030164,7]
[364703076,1749211853045,-480.0,0.00030164,7]
[364703077,1749211853056,-480.0,0.00030164,7]
[364703078,1749211853067,-493.19373307,0.00030164,7]
[364703079,1749211853078,-505.64274209,0.00030164,7]
[364703080,1749211853087,-480.0,0.00030164,7]
[364703081,1749211853098,-480.0,0.00030164,7]
[364703082,1749211853111,-480.0,0.00030164,7]
[364703083,1749211853120,-548.32,0.00030164,7]
[364703084,1749211853130,-500.09842453,0.00030164,7]
[364703085,1749211853140,-506.28701828,0.00030164,7]
[364703086,1749211853150,-480.0,0.00030164,7]
[364703087,1749211853161,-480.0,0.00030164,7]
[364703088,1749211853170,-480.0,0.00030164,7]
[364703089,1749211853181,-480.0,0.00030164,7]
[364703090,1749211853191,-523.15744479,0.00030164,7]
[364703091,1749211853201,-480.0,0.00030164,7]
[364703092,1749211853210,-480.0,0.00030164,7]
[364703093,1749211853220,-970.32,0.00030164,7]
[364703094,1749211853229,-818.4,0.00030164,7]
[364703095,1749211853239,-480.0,0.00030164,7]
[364703096,1749211853248,-480.0,0.00030164,7]
[364703097,1749211853257,-480.0,0.00030164,7]
[364703098,1749211853267,-491.51013629,0.00030164,7]
[364703099,1749211853276,-499.12857982,0.00030164,7]
[364703100,1749211853286,-480.0,0.00030164,7]
[364703101,1749211853295,-480.0,0.00030164,7]
[364703102,1749211853305,-480.0,0.00030164,7]
[364703103,1749211853314,-480.0,0.00030164,7]
[364703104,1749211853324,-480.0,0.00030164,7]
[364703105,1749211853334,-480.0,0.00030164,7]
[364703106,1749211853343,-480.0,0.00030164,7]
[364703107,1749211853353,-480.0,0.00030164,7]
[364703108,1749211853362,-483.60662542,0.00030164,7]
[364703109,1749211853372,-480.0,0.00030164,7]
[364703110,1749211853383,-493.36,0.00030164,7]
[364703111,1749211853396,-485.57084507,0.00030164,7]
[364703112,1749211853407,-480.0,0.00030164,7]
[364703113,1749211853417,-480.0,0.00030164,7]
[364703114,1749211853427,-480.0,0.00030164,7]
[364703115,1749211853437,-480.0,0.00030164,7]
[364703116,1749211853447,-420.0,0.00030164,7]
[364703117,1749211853458,-480.0,0.00030164,7]
[364703118,1749211853468,-490.68551406,0.00030164,7]
[364703119,1749211853478,-517.57,0.00030164,7]
[364703120,1749211853488,-480.0,0.00030164,7]
[364703121,1749211853499,-480.0,0.00030164,7]
[364703122,1749211853509,-484.27539449,0.00030164,7]
[364703123,1749211853518,-480.0,0.00030164,7]
[364703124,1749211853529,-151.0,0.00030164,7]
[364703125,1749211853540,-151.0,0.00030164,7]
[364703126,1749211853550,-480.0,0.00030164,7]
[364703127,1749211853560,-480.0,0.00030164,7]
[364703128,1749211853570,-151.0,0.00030164,7]
[364703129,1749211853580,-480.0,0.00030164,7]
[364703130,1749211853590,-279.90584,0.00030164,7]
[364703131,1749211853600,-480.0,0.00030164,7]
[364703132,1749211853610,-491.37578586,0.00030164,7]
[364703133,1749211853620,-480.0,0.00030164,7]
[364703134,1749211853629,-492.47177423,0.00030164,7]
[364703135,1749211853639,-480.0,0.00030164,7]
[364703136,1749211853649,-484.50598563,0.00030164,7]
[364703137,1749211853658,-485.88938331,0.00030164,7]
[364703138,1749211853667,-480.0,0.00030164,7]
[364703139,1749211853677,-370.26493977,0.00030164,7]
[364703140,1749211853687,-480.0,0.00030164,7]
[364703141,1749211853696,-1089.37,0.00030164,7]
[364703142,1749211853706,-501.21713607,0.00030164,7]
[364703143,1749211853715,-973.74,0.00030164,7]
[364703144,1749211853725,-485.10186756,0.00030164,7]
[364703145,1749211853734,-480.0,0.00030164,7]
[364703146,1749211853745,-480.0,0.00030164,7]
[364703147,1749211853756,-488.21016514,0.00030164,7]
[364703148,1749211853765,-277.50472787,0.00030164,7]
[364703149,1749211853776,-357.83408628,0.00030164,7]